bitfinex-derivatives/quotes_SOLF0:USTF0_20251026
["timestamp","ask_amount","ask_price","bid_price","bid_amount"]
[1761462459802,4.45322863,194.28,194.27,2.74]
[1761462460104,4.45322863,194.3,194.27,2.74]
[1761462460306,4.45322863,194.29,194.27,2.74]
[1761462460502,4.45322863,194.28,194.27,2.74]
[1761462460694,1.49235045,194.31,194.27,2.74]
[1761462460695,4.45322863,194.3,194.27,2.74]
[1761462460899,4.45322863,194.29,194.27,2.74]
[1761462461106,4.45322863,194.28,194.27,2.74]
[1761462461304,4.45322863,194.3,194.27,2.74]
[1761462461505,4.45322863,194.29,194.27,2.74]
[1761462461704,4.45322863,194.28,194.24,2.75]
[1761462462005,4.45322863,194.28,194.24,64.73]
[1761462462006,1.49235045,194.28,194.24,64.73]
[1761462462199,4.45310086,194.27,194.22,2.75]
[1761462462404,5.94545131,194.26,194.22,2.75]
[1761462462607,1.49235045,194.26,194.22,2.75]
[1761462463305,5.94545131,194.26,194.22,2.75]
[1761462463501,1.49235045,194.26,194.22,2.75]
[1761462464000,1.49235045,194.26,194.22,64.73]
[1761462464202,4.45381455,194.25,194.22,61.98]
[1761462464402,4.45381455,194.25,194.22,64.73]
[1761462464708,4.45381455,194.25,194.23,2.75]
[1761462471113,1.49235045,194.26,194.23,2.75]
[1761462471612,5.946165,194.26,194.23,2.75]
[1761462471812,1.49235045,194.26,194.23,2.75]
[1761462472312,5.946165,194.26,194.23,2.75]
[1761462472512,1.49235045,194.26,194.23,2.75]
[1761462473015,5.946165,194.26,194.23,2.75]
[1761462473206,1.49235045,194.26,194.23,2.75]
[1761462473610,5.946165,194.26,194.23,2.75]
[1761462473809,1.49235045,194.26,194.23,2.75]
[1761462474320,5.946165,194.26,194.23,2.75]
[1761462474617,1.49235045,194.26,194.23,2.75]
[1761462475016,5.946165,194.26,194.23,2.75]
[1761462475214,1.49235045,194.26,194.23,2.75]
[1761462475615,5.946165,194.26,194.23,2.75]
[1761462475814,1.49235045,194.26,194.23,2.75]
[1761462476215,5.946165,194.26,194.23,2.75]
[1761462476518,1.49235045,194.26,194.23,2.75]
[1761462477027,5.946165,194.26,194.23,2.75]
[1761462477217,1.49235045,194.26,194.21,170.17422025]
[1761462477517,1.49235045,194.26,194.22,2.75]
[1761462477718,5.946165,194.26,194.22,2.75]
[1761462477919,1.49235045,194.26,194.22,2.75]
[1761462478306,5.946165,194.26,194.22,2.75]
[1761462478508,1.49235045,194.26,194.22,2.75]
[1761462478913,5.946165,194.26,194.22,2.75]
[1761462479112,1.49235045,194.26,194.22,2.75]
[1761462479616,5.946165,194.26,194.22,2.75]
[1761462479818,1.49235045,194.26,194.22,2.75]
[1761462480212,5.946165,194.26,194.22,2.75]
[1761462480413,1.49235045,194.26,194.22,2.75]
[1761462480814,5.946165,194.26,194.22,2.75]
[1761462481014,1.49235045,194.26,194.22,2.75]
[1761462481420,5.946165,194.26,194.22,2.75]
[1761462481619,1.49235045,194.26,194.22,2.75]
[1761462482116,5.946165,194.26,194.22,2.75]
[1761462482316,1.49235045,194.26,194.22,2.75]
[1761462482814,5.946165,194.26,194.22,2.75]
[1761462483015,1.49235045,194.26,194.22,2.75]
[1761462483515,5.946165,194.26,194.22,2.75]
[1761462483718,1.49235045,194.26,194.22,2.75]
[1761462484119,5.946165,194.26,194.22,2.75]
[1761462484420,1.49235045,194.26,194.22,2.75]
[1761462484920,5.946165,194.26,194.22,2.75]
[1761462485120,1.49235045,194.26,194.22,2.75]
[1761462485720,5.946165,194.26,194.22,2.75]
[1761462485920,1.49235045,194.26,194.22,2.75]
[1761462486320,5.946165,194.26,194.22,2.75]
[1761462486522,1.49235045,194.26,194.22,2.75]
[1761462488116,5.946165,194.29,194.22,2.75]
[1761462488316,4.45381455,194.28,194.22,2.75]
[1761462488517,4.45381455,194.27,194.22,2.75]
[1761462488718,4.45381455,194.28,194.22,2.75]
[1761462488921,4.45381455,194.27,194.22,2.75]
[1761462489119,4.45381455,194.28,194.22,2.75]
[1761462489319,4.45381455,194.27,194.22,2.75]
[1761462489521,4.45381455,194.28,194.22,2.75]
[1761462489716,4.45381455,194.27,194.22,2.75]
[1761462489922,4.45381455,194.28,194.22,2.75]
[1761462490216,4.45381455,194.27,194.22,2.75]
[1761462490416,4.45381455,194.29,194.22,2.75]
[1761462490622,4.45381455,194.28,194.22,2.75]
[1761462490819,4.45381455,194.29,194.22,2.75]
[1761462491019,4.45381455,194.28,194.22,2.75]
[1761462491223,4.45381455,194.3,194.22,2.75]
[1761462491414,4.45381455,194.29,194.22,2.75]
[1761462491612,4.45381455,194.28,194.22,2.75]
[1761462491816,4.45381455,194.3,194.22,2.75]
[1761462492016,4.45381455,194.29,194.22,2.75]
[1761462492218,4.45381455,194.28,194.22,2.75]
[1761462492523,4.45381455,194.3,194.22,2.75]
[1761462492725,4.45381455,194.29,194.22,2.75]
[1761462493022,4.45381455,194.28,194.22,2.75]
[1761462493326,4.45381455,194.3,194.22,2.75]
[1761462493526,4.45381455,194.29,194.22,2.75]
[1761462493725,1.49235045,194.29,194.22,2.75]
[1761462493926,1.49235045,194.26,194.19,46.62454]
[1761462494126,4.45381455,194.25,194.19,46.62454]
[1761462494330,4.45381455,194.24,194.19,46.62454]
[1761462494529,4.45381455,194.25,194.19,46.62454]
[1761462494727,4.45381455,194.24,194.19,46.62454]
[1761462494926,4.45381455,194.25,194.19,46.62454]
[1761462495129,4.45381455,194.24,194.19,46.62454]
[1761462495329,4.45381455,194.25,194.19,46.62454]
[1761462495526,4.45381455,194.24,194.19,46.62454]
[1761462495726,4.45381455,194.25,194.19,46.62454]
[1761462496025,4.45381455,194.24,194.19,46.62454]
[1761462496224,4.45381455,194.25,194.19,46.62454]
[1761462496420,4.45381455,194.24,194.19,46.62454]
[1761462496630,1.49235045,194.23,194.19,46.62454]
[1761462497635,1.49235045,194.23,194.2,2.67]
[1761462498745,4.45381455,194.25,194.2,2.67]
[1761462498941,4.45381455,194.26,194.2,2.67]
[1761462499143,4.45381455,194.25,194.2,2.67]
[1761462499343,4.45381455,194.26,194.2,2.67]
[1761462499542,4.45381455,194.25,194.2,2.67]
[1761462499746,4.45381455,194.26,194.2,2.67]
[1761462499948,4.45381455,194.25,194.2,2.67]
[1761462500248,4.45381455,194.26,194.2,2.67]
[1761462500448,4.45381455,194.25,194.2,2.67]
[1761462500642,4.45381455,194.26,194.2,2.67]
[1761462500843,4.45381455,194.25,194.2,2.67]
[1761462501044,4.45381455,194.26,194.2,2.67]
[1761462501346,4.45381455,194.25,194.2,2.67]
[1761462501547,4.45381455,194.24,194.2,2.67]
[1761462501847,4.45381455,194.26,194.2,2.67]
[1761462502039,4.45381455,194.25,194.2,2.67]
[1761462502236,4.45381455,194.24,194.19,46.62454]
[1761462502443,4.45381455,194.26,194.19,46.62454]
[1761462502641,4.45381455,194.25,194.19,46.62454]
[1761462502841,4.45381455,194.24,194.19,46.62454]
[1761462503146,4.45381455,194.26,194.19,46.62454]
[1761462503335,4.45381455,194.25,194.19,46.62454]
[1761462503541,4.45381455,194.24,194.19,46.62454]
[1761462503740,4.45381455,194.26,194.19,46.62454]
[1761462503943,4.45381455,194.25,194.19,46.62454]
[1761462504145,4.45381455,194.24,194.19,46.62454]
[1761462504344,4.45381455,194.26,194.19,46.62454]
[1761462504544,4.45381455,194.25,194.19,46.62454]
[1761462504744,4.45381455,194.24,194.19,46.62454]
[1761462504944,4.45381455,194.26,194.19,46.62454]
[1761462505149,4.45381455,194.25,194.19,46.62454]
[1761462505346,4.45381455,194.24,194.2,2.67]
[1761462505545,4.45381455,194.26,194.2,2.67]
[1761462505747,4.45381455,194.25,194.2,2.67]
[1761462505950,4.45381455,194.24,194.2,2.67]
[1761462506248,4.45381455,194.26,194.2,2.67]
[1761462506448,4.45381455,194.25,194.2,2.67]
[1761462506648,4.45381455,194.24,194.2,2.67]
[1761462506848,4.45381455,194.26,194.2,2.67]
[1761462507048,4.45381455,194.25,194.2,2.67]
[1761462507347,4.45381455,194.24,194.2,2.67]
[1761462507548,4.45381455,194.23,194.2,2.67]
[1761462507748,4.45381455,194.26,194.2,2.67]
[1761462507948,4.45381455,194.25,194.2,2.67]
[1761462508146,4.45381455,194.24,194.2,2.67]
[1761462508346,4.45381455,194.23,194.2,2.67]
[1761462508547,4.45381455,194.26,194.2,2.67]
[1761462508742,4.45381455,194.25,194.2,2.67]
[1761462509041,4.45381455,194.24,194.2,2.67]
[1761462509247,4.45381455,194.26,194.2,2.67]
[1761462509447,4.45381455,194.25,194.2,2.67]
[1761462509642,4.45381455,194.24,194.2,2.67]
[1761462509850,4.45381455,194.26,194.2,2.67]
[1761462510046,4.45381455,194.25,194.2,2.67]
[1761462510243,4.45381455,194.24,194.2,2.67]
[1761462510446,4.45381455,194.26,194.2,2.67]
[1761462510744,4.45381455,194.25,194.2,2.67]
[1761462510948,4.45381455,194.24,194.2,2.67]
[1761462511144,4.45381455,194.26,194.2,2.67]
[1761462511344,4.45381455,194.25,194.2,2.67]
[1761462511550,4.45381455,194.24,194.2,2.67]
[1761462511854,4.45381455,194.26,194.2,2.67]
[1761462512055,4.45381455,194.25,194.2,2.67]
[1761462512255,4.45381455,194.24,194.2,2.67]
[1761462512451,4.45381455,194.26,194.2,2.67]
[1761462512654,4.45381455,194.25,194.2,2.67]
[1761462512853,4.45381455,194.24,194.2,2.67]
[1761462513046,4.45381455,194.26,194.2,2.67]
[1761462513247,4.45381455,194.25,194.2,2.67]
[1761462513446,4.45381455,194.24,194.2,2.67]
[1761462513749,4.45381455,194.26,194.2,2.67]
[1761462513949,4.45381455,194.25,194.2,2.67]
[1761462514149,4.45381455,194.24,194.2,2.67]
[1761462514351,4.45381455,194.26,194.2,2.67]
[1761462514552,4.45381455,194.25,194.2,2.67]
[1761462514752,4.45381455,194.24,194.19,43.95454]
[1761462515060,4.82119701,194.22,194.19,43.95454]
[1761462515358,8.1601685,194.21,194.19,43.95454]
[1761462515558,8.1601685,194.2,194.19,43.95454]
[1761462516757,3.70635395,194.2,194.19,43.95454]
[1761462516959,8.1601685,194.2,194.19,43.95454]
[1761462517158,3.70635395,194.2,194.19,43.95454]
[1761462517460,8.1601685,194.2,194.19,43.95454]
[1761462517653,3.70635395,194.2,194.19,43.95454]
[1761462517852,8.1601685,194.2,194.19,43.95454]
[1761462518048,3.70635395,194.2,194.19,43.95454]
[1761462521560,4.72635395,194.2,194.19,43.95454]
[1761462523359,1.02,194.2,194.19,43.95454]
[1761462523564,4.72635395,194.2,194.19,43.95454]
[1761462523761,1.02,194.2,194.19,43.95454]
[1761462524065,4.72635395,194.2,194.19,43.95454]
[1761462524455,1.02,194.2,194.19,43.95454]
[1761462524752,4.72635395,194.2,194.19,43.95454]
[1761462524955,1.02,194.2,194.19,43.95454]
[1761462525162,4.72635395,194.2,194.19,43.95454]
[1761462525457,1.02,194.2,194.19,43.95454]
[1761462525660,4.72635395,194.2,194.19,43.95454]
[1761462525854,1.02,194.2,194.19,43.95454]
[1761462526060,4.72635395,194.2,194.19,43.95454]
[1761462526361,1.02,194.2,194.19,43.95454]
[1761462526570,4.72635395,194.2,194.19,43.95454]
[1761462527268,1.02,194.2,194.19,43.95454]
[1761462527466,4.72635395,194.2,194.19,43.95454]
[1761462528162,1.02,194.2,194.19,43.95454]
[1761462528360,4.72635395,194.2,194.19,43.95454]
[1761462528559,3.70635395,194.21,194.19,46.74454]
[1761462528760,8.1601685,194.22,194.2,2.79]
[1761462528966,3.70635395,194.21,194.2,2.79]
[1761462529166,8.11998538,194.24,194.2,2.79]
[1761462529363,3.70635395,194.23,194.2,2.79]
[1761462529573,3.70635395,194.22,194.2,2.79]
[1761462529866,3.70635395,194.23,194.2,2.79]
[1761462530063,3.70635395,194.22,194.19,43.95454]
[1761462530263,3.70635395,194.21,194.19,43.95454]
[1761462530460,8.11998538,194.23,194.19,43.95454]
[1761462530660,3.70635395,194.22,194.19,43.95454]
[1761462530862,3.70635395,194.21,194.19,43.95454]
[1761462531062,3.70635395,194.22,194.19,43.95454]
[1761462531366,3.70635395,194.21,194.19,43.95454]
[1761462531570,3.70635395,194.22,194.19,43.95454]
[1761462531767,3.70635395,194.21,194.19,43.95454]
[1761462531958,3.70635395,194.22,194.19,43.95454]
[1761462532158,3.70635395,194.21,194.19,43.95454]
[1761462532368,3.70635395,194.22,194.19,43.95454]
[1761462532566,3.70635395,194.21,194.19,43.95454]
[1761462532768,3.70635395,194.22,194.19,43.95454]
[1761462532966,4.41363143,194.23,194.19,43.95454]
[1761462532967,3.70635395,194.21,194.19,43.95454]
[1761462533277,3.70635395,194.2,194.19,43.95454]
[1761462533477,3.70635395,194.21,194.19,43.95454]
[1761462534375,3.70635395,194.2,194.19,43.95454]
[1761462534677,3.70635395,194.21,194.19,43.95454]
[1761462534863,3.70635395,194.2,194.19,43.95454]
[1761462535168,3.70635395,194.21,194.19,43.95454]
[1761462535371,3.70635395,194.2,194.19,43.95454]
[1761462535674,3.70635395,194.21,194.19,46.74454]
[1761462535863,3.70635395,194.2,194.19,46.74454]
[1761462536066,3.70635395,194.21,194.19,46.74454]
[1761462536262,3.70635395,194.2,194.19,46.74454]
[1761462536468,3.70635395,194.21,194.19,46.74454]
[1761462536765,3.70635395,194.2,194.19,46.74454]
[1761462536965,3.70635395,194.21,194.19,46.74454]
[1761462537171,3.70635395,194.2,194.19,46.74454]
[1761462537375,3.70635395,194.21,194.19,46.74454]
[1761462537574,3.70635395,194.2,194.19,46.74454]
[1761462537774,3.70635395,194.21,194.19,46.74454]
[1761462537974,3.70635395,194.2,194.19,46.74454]
[1761462538275,3.70635395,194.21,194.19,46.74454]
[1761462538475,3.70635395,194.2,194.19,46.74454]
[1761462545284,3.70635395,194.21,194.2,2.72]
[1761462548586,8.11998538,194.21,194.2,2.72]
[1761462548783,3.70635395,194.21,194.2,2.72]
[1761462548979,8.11998538,194.21,194.2,2.72]
[1761462549180,3.70635395,194.21,194.2,2.72]
[1761462549383,8.11998538,194.21,194.2,2.72]
[1761462556391,12.94118239,194.21,194.2,2.72]
[1761462559392,8.11998538,194.21,194.2,2.72]
[1761462566205,8.11998538,194.21,194.19,46.74454]
[1761462566395,12.9448758,194.2,194.19,46.74454]
[1761462566997,8.53124437,194.2,194.19,46.74454]
[1761462567605,3.70635395,194.2,194.19,46.74454]
[1761462567800,4.82489042,194.27,194.2,2.79]
[1761462567996,4.82489042,194.26,194.2,2.79]
[1761462568298,4.82489042,194.27,194.2,2.79]
[1761462569196,4.82489042,194.28,194.2,2.79]
[1761462570805,4.82489042,194.27,194.2,2.79]
[1761462571301,4.82489042,194.28,194.2,2.79]
[1761462579518,6.31862981,194.28,194.2,2.79]
[1761462579722,4.82489042,194.26,194.2,2.79]
[1761462579920,1.49373939,194.24,194.2,2.79]
[1761462580123,3.67851888,194.23,194.2,2.79]
[1761462580322,3.67851888,194.22,194.2,2.79]
[1761462580516,3.67851888,194.23,194.2,2.79]
[1761462580716,3.67851888,194.22,194.2,2.79]
[1761462580912,3.67851888,194.23,194.2,2.79]
[1761462581123,3.67851888,194.22,194.2,2.79]
[1761462581322,3.67851888,194.23,194.2,2.79]
[1761462581523,3.67851888,194.22,194.2,2.79]
[1761462581822,3.67851888,194.23,194.2,2.79]
[1761462582022,3.67851888,194.22,194.2,2.79]
[1761462582322,3.67851888,194.23,194.2,2.79]
[1761462582519,3.67851888,194.22,194.2,2.79]
[1761462582722,3.67851888,194.23,194.2,2.79]
[1761462582924,3.67851888,194.22,194.19,46.67454]
[1761462583119,3.67851888,194.21,194.19,43.95454]
[1761462583325,3.67851888,194.23,194.19,43.95454]
[1761462583524,3.67851888,194.22,194.19,43.95454]
[1761462583824,3.67851888,194.21,194.19,46.67454]
[1761462584026,3.67851888,194.2,194.19,46.67454]
[1761462584224,1.49373939,194.21,194.19,46.67454]
[1761462584427,3.67851888,194.2,194.19,46.67454]
[1761462584621,3.67851888,194.2,194.19,43.95454]
[1761462596536,3.67851888,194.2,194.19,46.67454]
[1761462601137,3.67851888,194.2,194.19,46.67454]
[1761462605440,3.67851888,194.22,194.2,2.68]
[1761462605630,3.67851888,194.21,194.2,2.68]
[1761462606440,3.67851888,194.22,194.2,2.68]
[1761462606640,3.67851888,194.21,194.2,2.68]
[1761462606938,3.67851888,194.22,194.2,2.68]
[1761462607140,3.67851888,194.21,194.2,2.68]
[1761462607440,3.67851888,194.22,194.2,2.68]
[1761462607639,3.67851888,194.21,194.2,2.68]
[1761462607938,3.67851888,194.22,194.2,2.68]
[1761462608141,3.67851888,194.21,194.2,2.68]
[1761462608341,3.67851888,194.22,194.2,2.68]
[1761462608537,3.67851888,194.21,194.2,2.68]
[1761462608736,3.67851888,194.22,194.2,2.68]
[1761462608933,3.67851888,194.21,194.2,2.68]
[1761462609132,3.67851888,194.22,194.2,2.68]
[1761462609333,3.67851888,194.21,194.2,2.68]
[1761462609541,3.67851888,194.22,194.2,2.68]
[1761462609839,3.67851888,194.21,194.2,2.68]
[1761462610142,3.67851888,194.22,194.2,2.68]
[1761462610344,3.67851888,194.21,194.2,2.68]
[1761462610545,3.67851888,194.22,194.2,2.68]
[1761462610843,3.67851888,194.21,194.2,2.68]
[1761462611043,3.67851888,194.22,194.2,2.68]
[1761462611342,3.67851888,194.21,194.2,2.68]
[1761462612145,3.67851888,194.22,194.2,2.68]
[1761462612442,3.67851888,194.21,194.2,2.68]
[1761462616536,3.67851888,194.23,194.2,2.68]
[1761462616736,3.67851888,194.22,194.2,2.68]
[1761462616940,3.67851888,194.21,194.2,2.68]
[1761462617140,3.67851888,194.24,194.2,2.68]
[1761462617345,3.67851888,194.23,194.2,2.68]
[1761462617545,3.67851888,194.22,194.2,2.68]
[1761462617847,3.67851888,194.21,194.2,2.68]
[1761462618048,3.67851888,194.24,194.2,2.68]
[1761462618347,3.67851888,194.23,194.2,2.68]
[1761462618539,3.67851888,194.22,194.2,2.68]
[1761462618735,3.67851888,194.21,194.2,2.68]
[1761462618937,3.67851888,194.24,194.2,2.68]
[1761462619136,3.67851888,194.23,194.2,2.68]
[1761462619445,3.67851888,194.22,194.2,2.68]
[1761462619643,3.67851888,194.21,194.2,2.68]
[1761462619942,3.67851888,194.24,194.2,2.68]
[1761462620143,3.67851888,194.23,194.2,2.68]
[1761462620350,3.67851888,194.22,194.2,2.68]
[1761462620548,3.67851888,194.21,194.2,2.68]
[1761462622651,3.67851888,194.21,194.19,43.95454]
[1761462622951,3.67851888,194.2,194.19,46.67454]
[1761462629848,3.67851888,194.23,194.19,43.95454]
[1761462630056,3.67851888,194.22,194.2,2.72]
[1761462630253,3.67851888,194.21,194.2,2.72]
[1761462640061,8.0845762,194.21,194.2,2.72]
[1761462640565,3.67851888,194.21,194.2,2.72]
[1761462641159,8.0845762,194.21,194.2,2.72]
[1761462641360,3.67851888,194.21,194.2,2.72]
[1761462641763,8.0845762,194.21,194.2,2.72]
[1761462642553,3.67851888,194.21,194.2,2.72]
[1761462642961,8.0845762,194.21,194.2,2.72]
[1761462644463,3.67851888,194.21,194.2,2.72]
[1761462644963,8.0845762,194.21,194.2,2.72]
[1761462645158,3.67851888,194.21,194.2,2.72]
[1761462645667,8.0845762,194.21,194.2,2.72]
[1761462645862,3.67851888,194.21,194.2,2.72]
[1761462646361,8.0845762,194.21,194.2,2.72]
[1761462647265,3.67851888,194.21,194.2,2.72]
[1761462647467,8.11387366,194.25,194.2,2.72]
[1761462647768,8.11387366,194.24,194.2,2.72]
[1761462647959,3.67851888,194.23,194.2,2.72]
[1761462648161,4.43535141,194.26,194.2,2.72]
[1761462648458,8.12501303,194.25,194.2,2.72]
[1761462648658,8.12501303,194.24,194.2,2.72]
[1761462648858,3.68966162,194.23,194.2,2.72]
[1761462649161,4.43481661,194.26,194.2,2.72]
[1761462649361,8.12417424,194.25,194.2,2.72]
[1761462649565,8.12417424,194.24,194.2,2.72]
[1761462649759,3.68935763,194.23,194.2,2.72]
[1761462650065,4.43443122,194.26,194.2,2.72]
[1761462650367,8.1237894,194.25,194.2,2.72]
[1761462650554,8.1237894,194.24,194.2,2.72]
[1761462650759,3.68935818,194.23,194.2,2.72]
[1761462651057,4.43418134,194.26,194.2,2.72]
[1761462651257,8.12333159,194.25,194.2,2.72]
[1761462651459,8.12333159,194.24,194.19,43.95454]
[1761462651658,9.25907176,194.23,194.19,43.95454]
[1761462651867,12.94822201,194.22,194.19,43.95454]
[1761462652061,8.12333159,194.21,194.19,43.95454]
[1761462652262,4.82489042,194.22,194.19,43.95454]
[1761462652263,8.12333159,194.2,194.19,43.95454]
[1761462652458,3.68915025,194.2,194.19,43.95454]
[1761462652664,8.12333159,194.2,194.19,43.95454]
[1761462652864,3.68915025,194.2,194.19,43.95454]
[1761462653069,8.12333159,194.2,194.19,43.95454]
[1761462653460,3.68915025,194.2,194.19,43.95454]
[1761462653664,8.12333159,194.2,194.19,43.95454]
[1761462654168,3.68915025,194.2,194.19,43.95454]
[1761462654368,8.12333159,194.2,194.19,43.95454]
[1761462657475,3.68915025,194.2,194.19,43.95454]
[1761462657673,8.12333159,194.2,194.19,43.95454]
[1761462658471,3.68915025,194.2,194.19,43.95454]
[1761462658671,8.12333159,194.2,194.19,43.95454]
[1761462658880,3.68915025,194.2,194.19,43.95454]
[1761462659176,8.12333159,194.2,194.19,43.95454]
[1761462659369,3.68915025,194.2,194.19,43.95454]
[1761462659570,8.12333159,194.2,194.19,43.95454]
[1761462659766,3.68915025,194.2,194.19,46.59454]
[1761462659969,8.12333159,194.2,194.19,46.59454]
[1761462660172,3.68915025,194.2,194.19,46.59454]
[1761462660674,8.12333159,194.2,194.19,46.59454]
[1761462660875,3.68915025,194.2,194.19,46.59454]
[1761462661275,8.12455509,194.2,194.19,46.59454]
[1761462662779,3.68915025,194.2,194.19,46.59454]
[1761462663179,8.12455509,194.2,194.19,46.59454]
[1761462663380,3.68915025,194.2,194.19,46.59454]
[1761462663779,8.12455509,194.2,194.19,46.59454]
[1761462663975,3.68915025,194.2,194.19,46.59454]
[1761462664378,8.12455509,194.2,194.19,46.59454]
[1761462665777,3.68915025,194.2,194.19,46.59454]
[1761462666176,8.12455509,194.2,194.19,46.59454]
[1761462666385,3.68915025,194.2,194.19,46.59454]
[1761462666786,8.12455509,194.2,194.19,46.59454]
[1761462667685,3.68915025,194.2,194.19,46.59454]
[1761462668181,8.12455509,194.2,194.19,46.59454]
[1761462668381,3.68915025,194.2,194.19,46.59454]
[1761462668578,8.12455509,194.2,194.19,46.59454]
[1761462668780,3.68915025,194.2,194.19,46.59454]
[1761462668983,8.12455509,194.2,194.19,46.59454]
[1761462669183,3.68915025,194.2,194.19,46.59454]
[1761462671387,8.12455509,194.2,194.19,46.59454]
[1761462671578,3.68915025,194.2,194.19,46.59454]
[1761462687906,8.05702582,194.2,194.19,46.59454]
[1761462689707,3.68915025,194.2,194.19,46.59454]
[1761462694210,8.05702582,194.2,194.19,46.59454]
[1761462694414,3.68915025,194.2,194.19,46.59454]
[1761462694609,8.05702582,194.2,194.19,46.59454]
[1761462694815,3.68915025,194.2,194.19,46.59454]
[1761462695011,8.05702582,194.2,194.19,46.59454]
[1761462704717,8.05702582,194.2,194.19,26.48785713]
[1761462704915,14.38306593,194.2,194.19,26.48785713]
[1761462707527,8.05702582,194.2,194.19,26.48785713]
[1761462714842,18.42831993,194.2,194.19,26.48785713]
[1761462716446,18.42831993,194.2,194.19,29.22785713]
[1761462717443,14.38306593,194.2,194.19,29.22785713]
[1761462717647,18.42772869,194.2,194.19,29.22785713]
[1761462718448,18.42772869,194.2,194.19,26.48785713]
[1761462719340,14.38306593,194.2,194.19,26.48785713]
[1761462719844,14.38306593,194.2,194.19,29.22785713]
[1761462726345,14.38306593,194.2,194.19,26.48785713]
[1761462726550,18.42721198,194.2,194.19,26.48785713]
[1761462729861,18.62941252,194.2,194.19,26.48785713]
[1761462732363,18.62941252,194.2,194.19,29.35785713]
[1761462737867,18.62352193,194.2,194.19,29.35785713]
[1761462738768,10.2173909,194.2,194.19,29.35785713]
[1761462739068,14.59522264,194.2,194.19,29.35785713]
[1761462739268,10.2173909,194.2,194.19,29.35785713]
[1761462739463,18.63368334,194.2,194.19,29.35785713]
[1761462739671,10.2173909,194.2,194.19,29.35785713]
[1761462739971,18.63368334,194.2,194.19,29.35785713]
[1761462740671,10.2173909,194.2,194.19,29.35785713]
[1761462742569,14.59560601,194.2,194.19,29.35785713]
[1761462742774,18.63427763,194.2,194.19,29.35785713]
[1761462745584,18.63537761,194.2,194.19,29.35785713]
[1761462747182,12.3093375,194.2,194.19,29.35785713]
[1761462748280,8.27066588,194.2,194.19,29.35785713]
[1761462750881,8.27283365,194.2,194.19,29.35785713]
[1761462769009,8.71235028,194.2,194.19,29.35785713]
[1761462769304,13.09383314,194.2,194.19,29.35785713]
[1761462771206,8.27283365,194.2,194.19,29.35785713]
[1761462774307,13.09383314,194.2,194.19,29.35785713]
[1761462777409,8.71235028,194.2,194.19,29.35785713]
[1761462777912,13.09150973,194.2,194.19,29.35785713]
[1761462781207,8.71235028,194.2,194.19,29.35785713]
[1761462781505,13.09186338,194.2,194.19,29.35785713]
[1761462792119,8.27086389,194.2,194.19,29.35785713]
[1761462802918,4.3795131,194.2,194.19,29.35785713]
[1761462803124,8.26639693,194.2,194.19,29.35785713]
[1761462803326,3.88688383,194.2,194.19,29.35785713]
[1761462803825,8.27191634,194.2,194.19,29.35785713]
[1761462813621,8.27191634,194.2,194.19,26.48785713]
[1761462813821,12.31789017,194.2,194.19,26.48785713]
[1761462814235,12.31878094,194.2,194.19,26.48785713]
[1761462816231,18.74983113,194.2,194.19,26.48785713]
[1761462819439,18.74687072,194.2,194.19,26.48785713]
[1761462823438,18.74687072,194.2,194.19,29.10785713]
[1761462824733,18.74181076,194.2,194.19,29.10785713]
[1761462828535,8.2698467,194.2,194.19,29.10785713]
[1761462828948,13.0892143,194.2,194.19,29.10785713]
[1761462829135,8.2698467,194.2,194.19,29.10785713]
[1761462829339,13.08912372,194.2,194.19,29.10785713]
[1761462863782,8.70616085,194.2,194.19,29.10785713]
[1761462863988,13.09234919,194.2,194.19,29.10785713]
[1761462869490,13.09432449,194.2,194.19,29.10785713]
[1761462870091,8.27504747,194.2,194.19,29.10785713]
[1761462870285,13.09432449,194.2,194.19,29.10785713]
[1761462870683,8.27504747,194.2,194.19,29.10785713]
[1761462870886,13.09432449,194.2,194.19,29.10785713]